bitfinex-derivatives/quotes_ETHF0:USTF0_20240923
["timestamp","ask_amount","ask_price","bid_price","bid_amount"]
[1727120118710,0.93369,2677.4,2677.1,0.37351]
[1727120118908,0.3735,2677.2,2677.1,0.37351]
[1727120119113,3.2078,2677.5,2677.0,0.443]
[1727120119114,0.37349,2677.3,2677.0,0.443]
[1727120119317,0.3735,2677.2,2677.1,0.37351]
[1727120120812,0.37353,2677.0,2676.9,41.17353]
[1727120121011,0.37353,2677.0,2676.9,41.58343]
[1727120121714,0.37352,2677.1,2677.0,0.37352]
[1727120122214,0.8039,2677.3,2677.2,0.3735]
[1727120122407,0.8039,2677.3,2677.2,3.0035]
[1727120124014,0.4304,2677.3,2677.2,3.0035]
[1727120124216,0.80389,2677.3,2677.2,3.0035]
[1727120124615,0.4304,2677.3,2676.9,43.43]
[1727120124815,0.93377,2677.2,2677.0,0.37352]
[1727120125016,0.37353,2677.0,2676.9,43.80353]
[1727120125310,0.93386,2676.9,2676.6,0.4134]
[1727120125509,0.3736,2676.5,2676.4,0.37361]
[1727120125709,0.3736,2676.5,2676.1,4.14194]
[1727120125710,0.934,2676.5,2676.1,3.58145]
[1727120125912,0.37363,2676.3,2676.2,40.8]
[1727120126513,0.4371,2676.4,2676.3,0.37363]
[1727120126820,0.37358,2676.7,2676.6,0.37358]
[1727120127018,0.37358,2676.7,2676.6,2.63]
[1727120128314,0.37358,2676.7,2676.6,3.00358]
[1727120128819,0.37356,2676.8,2676.6,3.00358]
[1727120129519,0.37356,2676.8,2676.7,0.37357]
[1727120130019,0.37356,2676.8,2676.6,3.00358]
[1727120130716,0.37356,2676.8,2676.7,0.37357]
[1727120132919,3.2078,2676.9,2676.8,0.37356]
[1727120133219,3.58135,2676.9,2676.6,0.4384]
[1727120133622,3.58135,2676.9,2676.7,0.37357]
[1727120134325,3.58135,2676.9,2676.7,0.37356]
[1727120134518,1.22593,2677.0,2676.7,2.63]
[1727120134712,0.4435,2677.4,2677.0,0.37352]
[1727120134917,0.3735,2677.3,2676.9,2.63]
[1727120135222,1.64638,2677.4,2677.3,0.37349]
[1727120135423,0.8294,2677.4,2677.3,0.37349]
[1727120135618,0.8294,2677.4,2677.1,3.00351]
[1727120135818,0.8294,2677.4,2677.3,0.37349]
[1727120136726,1.20287,2677.4,2677.3,0.37349]
[1727120137223,0.37349,2677.3,2677.2,0.7869]
[1727120137423,1.76312,2677.4,2676.9,2.63]
[1727120137617,0.3735,2677.2,2677.1,0.37351]
[1727120137817,0.3735,2677.2,2677.1,41.17351]
[1727120138518,0.3735,2677.2,2677.1,40.8]
[1727120138722,0.37354,2676.9,2676.8,0.77645]
[1727120138923,0.37352,2677.1,2676.9,0.37353]
[1727120139118,1.37503,2677.3,2676.9,0.37353]
[1727120139119,0.37353,2677.0,2676.9,0.37353]
[1727120139316,0.37353,2677.0,2676.9,41.17353]
[1727120139824,0.37352,2677.1,2676.9,41.17353]
[1727120140325,0.37351,2677.2,2676.9,40.8]
[1727120140525,1.37504,2677.3,2677.0,0.37353]
[1727120140826,0.37352,2677.1,2677.0,0.37353]
[1727120141028,0.37351,2677.2,2677.0,0.37353]
[1727120141522,0.37355,2676.9,2676.7,3.58136]
[1727120141727,0.8424,2676.8,2676.7,3.58136]
[1727120142029,0.8424,2676.8,2676.7,44.38136]
[1727120143125,0.37355,2676.9,2676.7,44.0078]
[1727120143424,0.37355,2676.9,2676.8,0.37355]
[1727120143819,0.37354,2677.0,2676.8,0.37355]
[1727120144019,0.37356,2676.8,2676.7,40.8]
[1727120144228,0.37357,2676.7,2676.6,0.4408]
[1727120144424,1.23807,2676.7,2676.6,0.4408]
[1727120144925,1.23807,2676.7,2676.6,41.2408]
[1727120145626,1.23807,2676.7,2676.6,41.61438]
[1727120146031,1.23807,2676.7,2676.6,40.8]
[1727120146230,1.23807,2676.7,2676.4,0.37361]
[1727120146231,0.37361,2676.5,2676.4,0.37361]
[1727120146530,0.37364,2676.2,2676.1,0.81445]
[1727120146734,0.37364,2676.2,2676.1,41.61445]
[1727120147431,0.37364,2676.3,2676.1,41.2408]
[1727120147632,0.8155,2676.2,2676.1,41.61445]
[1727120148432,1.18914,2676.2,2676.1,41.61445]
[1727120148731,0.8155,2676.2,2676.1,41.61445]
[1727120149235,0.37362,2676.4,2676.1,43.8708]
[1727120149429,0.37362,2676.4,2676.3,0.37362]
[1727120149632,1.30779,2676.1,2676.0,3.2078]
[1727120149934,0.93414,2676.1,2675.8,0.4129]
[1727120150233,0.37368,2675.9,2675.8,41.58658]
[1727120152732,1.21957,2676.0,2675.9,0.37368]
[1727120152933,1.30789,2675.9,2675.8,40.8]
[1727120153129,0.37372,2675.7,2675.5,0.37373]
[1727120153334,0.37372,2675.6,2675.5,0.37373]
[1727120153533,0.37372,2675.6,2675.5,41.17373]
[1727120153734,0.37372,2675.7,2675.6,0.37372]
[1727120153935,3.2078,2675.9,2675.6,0.37371]
[1727120154135,0.3737,2675.8,2675.6,0.77601]
[1727120154438,0.37372,2675.6,2675.5,40.8]
[1727120154633,0.77822,2675.7,2675.5,40.8]
[1727120154832,0.77822,2675.7,2675.5,41.17373]
[1727120156141,1.33879,2675.7,2675.2,3.2078]
[1727120156339,3.644,2675.6,2675.2,0.4052]
[1727120156638,0.37377,2675.3,2675.2,41.2052]
[1727120157041,0.37377,2675.3,2675.2,41.57898]
[1727120157345,0.37376,2675.4,2675.2,41.57897]
[1727120157848,0.37376,2675.4,2675.3,0.37377]
[1727120158245,0.37375,2675.4,2675.2,41.2052]
[1727120158443,0.37375,2675.4,2675.3,0.37377]
[1727120159044,0.37377,2675.3,2675.2,41.2052]
[1727120159247,0.37376,2675.4,2675.3,0.37377]
[1727120159549,0.4088,2675.5,2675.4,0.37375]
[1727120160242,3.2078,2675.6,2675.3,2.63]
[1727120160638,3.2078,2675.6,2675.5,0.37374]
[1727120160933,0.8173,2675.9,2675.3,3.56441]
[1727120161139,0.3737,2675.8,2675.5,0.4226]
[1727120161339,0.3737,2675.8,2675.7,0.37371]
[1727120162244,3.7376,2675.8,2675.2,44.0078]
[1727120162539,2.63,2675.8,2675.2,44.0078]
[1727120162743,0.37374,2675.5,2675.4,0.37374]
[1727120163746,0.37373,2675.6,2675.5,0.37374]
[1727120164340,4.95933,2675.9,2675.2,40.8]
[1727120164546,0.37376,2675.4,2675.3,0.37376]
[1727120164848,0.37375,2675.5,2675.4,0.37375]
[1727120165047,0.37376,2675.4,2675.2,40.8]
[1727120165246,0.37375,2675.4,2675.3,0.37376]
[1727120165447,0.37373,2675.6,2675.5,0.37373]
[1727120166148,4.95932,2675.9,2675.2,40.8]
[1727120166445,0.37372,2675.7,2675.6,0.37372]
[1727120167649,0.37371,2675.8,2675.7,0.37371]
[1727120168042,4.0251,2675.9,2675.8,0.3737]
[1727120168241,4.0251,2675.9,2675.5,2.63]
[1727120168242,0.37369,2675.9,2675.5,6.2525]
[1727120168448,0.37369,2675.9,2675.8,0.37369]
[1727120169549,0.37368,2676.0,2675.9,0.37368]
[1727120169945,4.45567,2676.1,2675.5,1.34904]
[1727120170144,4.45567,2676.1,2675.8,0.37369]
[1727120170646,0.3737,2675.8,2675.7,0.3737]
[1727120171545,0.37374,2675.5,2675.4,0.81334]
[1727120171750,3.7376,2675.8,2675.5,0.37373]
[1727120171751,0.37373,2675.6,2675.5,0.37373]
[1727120172751,1.59892,2675.7,2675.6,0.37372]
[1727120172949,1.18832,2675.7,2675.6,0.37372]
[1727120173654,1.18831,2675.7,2675.6,0.37372]
[1727120173951,3.2078,2676.2,2676.0,0.37366]
[1727120174145,0.37366,2676.1,2676.0,0.37366]
[1727120174656,0.37367,2676.0,2675.9,0.37368]
[1727120174854,0.37366,2676.1,2676.0,0.37367]
[1727120175152,0.087,2676.9,2676.8,0.37356]
[1727120175356,3.9568,2677.3,2676.7,0.93393]
[1727120175357,3.2078,2677.3,2676.7,0.93393]
[1727120175548,3.2078,2677.3,2677.2,0.3735]
[1727120175855,4.40255,2677.6,2677.2,43.43]
[1727120176051,0.37346,2677.5,2677.3,0.37349]
[1727120176251,0.37349,2677.4,2677.2,43.43]
[1727120176554,0.37347,2677.5,2677.2,43.8035]
[1727120176750,0.37347,2677.5,2677.3,0.37348]
[1727120176953,4.40255,2677.6,2677.4,0.37347]
[1727120177146,0.8213,2677.6,2677.3,0.4317]
[1727120177351,4.40256,2677.6,2677.3,0.80518]
[1727120178352,1.19476,2677.6,2677.4,0.37347]
[1727120178853,0.8213,2677.6,2677.4,0.37347]
[1727120179352,1.19475,2677.6,2677.3,0.4317]
[1727120179554,0.37348,2677.4,2677.2,40.8]
[1727120179755,0.37347,2677.5,2677.3,0.37349]
[1727120180055,4.40255,2677.6,2677.3,0.37349]
[1727120181353,3.99445,2677.6,2677.2,40.8]
[1727120181654,3.621,2677.6,2677.4,0.37347]
[1727120181957,3.99445,2677.6,2677.4,0.37347]
[1727120182354,3.2078,2677.9,2677.5,2.63]
[1727120182554,3.58121,2677.9,2677.6,0.80914]
[1727120182752,3.58121,2677.9,2677.7,0.37343]
[1727120183154,0.37342,2677.8,2677.6,0.80914]
[1727120183462,0.37342,2677.8,2677.6,0.4357]
[1727120183761,0.37343,2677.7,2677.6,0.4357]
[1727120184465,0.37345,2677.6,2677.4,0.37347]
[1727120184763,3.2078,2677.6,2677.2,40.8]
[1727120184957,0.4155,2677.5,2677.2,40.8]
[1727120185157,0.37348,2677.4,2677.2,40.8]
[1727120185358,0.78897,2677.5,2677.2,40.8]
[1727120185562,0.37347,2677.4,2677.2,40.8]
[1727120185760,0.82267,2677.4,2677.2,40.8]
[1727120185965,0.37345,2677.6,2677.2,40.8]
[1727120186260,0.82264,2677.7,2677.5,0.37346]
[1727120186962,0.37345,2677.6,2677.4,0.37346]
[1727120187166,0.37347,2677.4,2677.2,41.17349]
[1727120187661,0.37347,2677.5,2677.3,0.37348]
[1727120188266,0.37345,2677.6,2677.4,0.37347]
[1727120188860,0.4492,2677.7,2677.6,0.37345]
[1727120189056,3.5812,2677.9,2677.6,2.63]
[1727120189259,3.2078,2677.9,2677.8,0.37342]
[1727120190163,3.2078,2677.9,2677.7,0.8527]
[1727120190164,3.2078,2677.9,2677.7,1.22613]
[1727120190359,0.37341,2677.9,2677.7,1.22613]
[1727120190561,0.37339,2678.0,2677.8,0.37341]
[1727120190761,0.37341,2677.9,2677.7,1.22612]
[1727120190963,0.3734,2678.0,2677.8,0.37341]
[1727120191770,3.645,2678.2,2677.9,2.63]
[1727120191960,0.37337,2678.2,2678.1,2.63]
[1727120192668,0.37335,2678.3,2678.1,3.00336]
[1727120192872,3.58114,2678.4,2678.1,2.63]
[1727120193054,3.58114,2678.4,2678.3,2.63]
[1727120193055,0.37333,2678.4,2678.3,2.63]
[1727120193561,0.37335,2678.3,2678.2,0.4182]
[1727120193769,0.37338,2678.1,2677.9,3.42159]
[1727120193968,0.37339,2678.0,2677.9,3.42159]
[1727120194268,0.37339,2678.0,2677.9,3.0482]
[1727120194870,0.3734,2677.9,2677.8,3.2078]
[1727120195066,3.2078,2678.0,2677.6,0.37344]
[1727120195370,3.2078,2678.0,2677.4,5.8378]
[1727120195371,0.37342,2677.8,2677.4,5.8378]
[1727120195562,0.37342,2677.8,2677.4,7.0378]
[1727120195760,0.78691,2677.9,2677.6,2.63]
[1727120195965,0.37341,2677.9,2677.7,0.37342]
[1727120196265,0.3734,2678.0,2677.8,0.37342]
[1727120196663,0.3734,2678.0,2677.9,0.4553]
[1727120197158,0.3734,2678.0,2677.6,3.00344]
[1727120197359,0.37343,2677.8,2677.7,0.37343]
[1727120198165,0.438,2677.9,2677.7,0.37343]
[1727120198166,0.37341,2677.9,2677.7,0.37343]
[1727120198471,0.37339,2678.0,2677.8,3.00341]
[1727120198970,0.37338,2678.1,2677.9,0.3734]
[1727120199375,0.37338,2678.1,2678.0,0.4343]
[1727120200573,3.2078,2678.3,2678.2,0.37336]
[1727120200870,1.08869707,2678.8,2678.5,0.37332]
[1727120200871,3.5811,2678.7,2678.5,0.37332]
[1727120201069,1.25719,2678.8,2678.6,3.4376]
[1727120201664,0.37327,2678.9,2678.7,0.37329]
[1727120201966,3.2078,2678.8,2678.6,0.4343]
[1727120202375,0.37329,2678.7,2678.6,0.4343]
[1727120202875,0.78669,2678.7,2678.6,0.4343]
[1727120203475,0.37331,2678.6,2678.4,3.00333]
[1727120203772,0.37331,2678.6,2678.4,4.33333]
[1727120204675,0.37331,2678.6,2678.4,3.96]
[1727120204976,0.37331,2678.6,2678.4,4.33333]
[1727120205677,0.37331,2678.6,2678.4,3.96]
[1727120205972,0.37331,2678.6,2678.4,2.63]
[1727120206475,0.37331,2678.6,2678.4,3.00333]
[1727120207179,0.7867,2678.7,2678.5,0.37332]
[1727120207474,3.58109,2678.8,2678.6,2.63]
[1727120207674,3.58109,2678.8,2678.6,3.0033]
[1727120207975,3.2078,2678.8,2678.7,0.82149]
[1727120208177,3.2078,2678.8,2678.7,0.4482]
[1727120209366,0.37327,2678.9,2678.7,0.4482]
[1727120210975,0.4362,2679.0,2678.5,0.4555]
[1727120211169,4.5679,2678.8,2678.5,2.09882]
[1727120211375,0.3733,2678.7,2678.5,0.82882]
[1727120211678,0.37331,2678.6,2678.5,0.4555]
[1727120212165,0.37332,2678.5,2678.4,3.0848]
[1727120212365,0.37331,2678.6,2678.4,4.72813]
[1727120214874,0.37331,2678.7,2678.5,0.37332]
[1727120215080,0.80019,2678.8,2678.6,3.0033]
[1727120215281,0.80018,2678.8,2678.6,3.0033]
[1727120215482,0.37328,2678.8,2678.6,3.0033]
[1727120215782,0.37328,2678.8,2678.7,0.37329]
[1727120216082,0.37327,2678.9,2678.7,0.37329]
[1727120216378,1.36935,2679.0,2678.7,0.37329]
[1727120216379,0.4362,2679.0,2678.7,0.37329]
[1727120216575,0.4362,2679.0,2678.8,0.4117]
[1727120216977,0.37327,2678.9,2678.8,0.4117]
[1727120218688,0.37329,2678.7,2678.6,2.63]
[1727120218887,0.37329,2678.8,2678.6,3.00331]
[1727120219386,0.37327,2678.9,2678.7,0.37329]
[1727120219880,1.36934,2679.0,2678.6,3.00329]
[1727120220077,1.36934,2679.0,2678.4,3.4787]
[1727120220278,0.37331,2678.6,2678.4,5.16203]
[1727120220589,0.37331,2678.6,2678.4,4.99203]
[1727120221085,1.20111,2678.6,2678.4,4.99203]
[1727120221588,0.3733,2678.7,2678.5,0.37332]
[1727120221791,0.37331,2678.6,2678.4,3.85203]
[1727120221989,0.37331,2678.6,2678.4,4.93203]
[1727120222191,4.14094,2679.0,2678.4,4.5587]
[1727120222393,0.37328,2678.8,2678.7,2.63]
[1727120223692,0.37327,2678.9,2678.7,2.63]
[1727120223891,0.37328,2678.8,2678.7,2.63]
[1727120224595,0.37327,2678.9,2678.7,3.00329]
[1727120225297,3.58106,2679.0,2678.7,3.00329]
[1727120225589,0.37327,2678.9,2678.7,2.63]
[1727120225991,0.37327,2678.9,2678.7,3.00329]
[1727120226392,3.58106,2679.0,2678.7,3.00329]
[1727120226791,0.37326,2678.9,2678.7,3.00329]
[1727120227093,0.37327,2678.9,2678.7,3.00329]
[1727120227291,3.2078,2679.0,2678.7,3.00329]
[1727120227592,3.2078,2679.0,2678.7,2.63]
[1727120227888,3.2078,2679.0,2678.9,0.37326]
[1727120228097,3.2078,2679.4,2679.3,0.37321]
[1727120228291,3.2078,2679.9,2679.3,2.63]
[1727120228493,0.37318,2679.5,2679.3,2.63]
[1727120228696,0.37318,2679.5,2679.4,40.8]
[1727120228993,3.6632,2679.6,2679.4,40.8]
[1727120229292,0.82857,2679.6,2679.4,40.8]
[1727120229887,3.58098,2679.5,2679.4,40.8]
[1727120230089,3.99148,2679.5,2679.4,40.8]
[1727120231687,3.6183,2679.5,2679.4,40.8]
[1727120231883,0.4554,2679.6,2679.4,43.43]
[1727120232081,0.37316,2679.7,2679.4,43.43]
[1727120232392,0.80584,2679.8,2679.5,0.455]
[1727120232591,4.01364,2679.8,2679.5,0.455]
[1727120232792,3.6405,2679.8,2679.5,0.82818]
[1727120232992,0.4327,2679.8,2679.6,3.00316]
[1727120233190,3.6588,2680.1,2679.7,2.63]
[1727120233396,4.03191,2680.1,2679.7,3.00315]
[1727120233598,3.2078,2680.1,2680.0,2.63]
[1727120233889,3.6326,2680.2,2680.0,2.63]
[1727120234091,0.79789,2680.2,2680.0,2.63]
[1727120234290,0.4248,2680.2,2680.0,2.63]
[1727120234492,4.00568,2680.2,2680.0,2.63]
[1727120234687,4.00568,2680.2,2679.8,3.00313]
[1727120234998,3.6326,2680.2,2679.8,2.63]
[1727120235197,0.37311,2680.0,2679.6,3.42946]
[1727120235499,0.37315,2679.8,2679.6,3.0563]
[1727120235690,0.9328,2680.0,2679.6,0.4263]
[1727120235890,0.37315,2679.8,2679.6,0.4263]
[1727120236091,0.4279,2679.7,2679.6,0.4263]
[1727120236288,0.37317,2679.6,2679.4,44.0078]
[1727120236493,3.2078,2679.5,2679.0,3.00325]
[1727120236800,0.37321,2679.3,2679.0,3.89735]
[1727120236993,0.37321,2679.3,2679.1,40.8]
[1727120237298,0.8095,2679.4,2679.1,41.17323]
[1727120237791,3.2078,2680.2,2679.2,14.51860398]
[1727120237992,3.6441,2680.2,2679.9,2.63]
[1727120238191,3.6441,2680.2,2679.9,3.00312]
[1727120238398,3.6441,2680.2,2680.0,0.4409]
[1727120239599,3.6441,2680.2,2680.0,0.8621]
[1727120240094,3.6441,2680.2,2680.1,0.3731]
[1727120240797,3.6441,2680.2,2680.0,1.2352]
[1727120241402,0.4363,2680.2,2680.0,1.2352]
[1727120241798,4.14039,2680.6,2680.0,0.8621]
[1727120241998,0.8658,2680.5,2680.1,2.63]
[1727120242195,0.8658,2680.5,2680.2,0.37308]
[1727120242700,0.8658,2680.5,2680.3,2.63]
[1727120243107,0.8658,2680.5,2680.4,41.2161]
[1727120243304,1.23884,2680.5,2680.4,41.2161]
[1727120244004,1.23884,2680.5,2680.4,0.4161]
[1727120245605,0.8658,2680.5,2680.1,3.0031]
[1727120245801,0.8658,2680.5,2680.1,3.4298]
[1727120246000,0.37308,2680.2,2679.9,2.63]
[1727120246205,3.2078,2680.0,2679.4,2.63]
[1727120246504,0.37318,2679.6,2679.4,43.8567]
[1727120246705,0.37316,2679.7,2679.4,43.8567]
[1727120246901,0.80336,2679.7,2679.4,43.8567]
[1727120247100,0.4302,2679.7,2679.4,43.8567]
[1727120247306,0.80337,2679.7,2679.4,43.8567]
[1727120247609,0.37318,2679.5,2679.4,40.8]
[1727120247996,1.3631,2679.7,2679.4,40.8]
[1727120248198,0.37317,2679.6,2679.4,40.8]
[1727120249606,0.37316,2679.7,2679.4,43.43]
[1727120249807,0.37316,2679.7,2679.4,43.80318]
[1727120250201,3.6519,2679.9,2679.4,43.80318]
[1727120250202,4.14063,2679.9,2679.4,40.8]
[1727120250411,0.37314,2679.8,2679.6,2.63]
[1727120250611,0.37313,2679.9,2679.7,0.4325]
[1727120250801,1.35047,2680.1,2679.7,0.4325]
[1727120251101,0.37311,2680.0,2679.7,0.4325]
[1727120251504,0.37313,2679.9,2679.7,0.4325]
[1727120252408,3.58093,2679.9,2679.7,0.4325]
[1727120252805,0.37313,2679.9,2679.7,0.4325]
[1727120253003,0.37313,2679.9,2679.4,43.43]
[1727120253004,3.2078,2679.9,2679.4,43.43]
[1727120253208,0.4267,2679.8,2679.4,2.63]
[1727120253404,0.37318,2679.6,2679.4,2.63]
[1727120253604,0.37318,2679.5,2679.4,2.63]
[1727120254006,0.78598,2679.6,2679.4,2.63]
[1727120254503,1.34573,2679.6,2679.0,3.2078]
[1727120254713,0.37324,2679.1,2678.7,0.80848]
[1727120254901,0.877,2679.0,2678.7,2.13848]
[1727120255100,1.25025,2679.0,2678.8,40.8]
[1727120255611,3.58103,2679.2,2678.9,2.63]
[1727120255912,1.25022,2679.3,2678.9,2.63]
[1727120256100,1.25022,2679.3,2678.9,3.00325]
[1727120256298,1.25022,2679.3,2679.0,0.4114]
[1727120256908,0.877,2679.3,2679.1,3.0501]
[1727120257113,0.3732,2679.4,2679.1,3.42333]
[1727120257504,3.2078,2679.5,2679.3,2.63]
[1727120257806,0.37315,2679.8,2679.4,0.37319]
[1727120258006,4.14064,2679.9,2679.5,3.0448]
[1727120258007,4.0599,2679.9,2679.5,3.0448]
[1727120258215,4.0599,2679.9,2679.6,0.4201]
[1727120258404,4.0599,2679.9,2679.8,2.63]
[1727120258713,0.8521,2679.9,2679.8,2.63]
[1727120259101,3.58089,2680.2,2679.8,3.00313]
[1727120259301,3.58088,2680.2,2680.0,2.63]
[1727120259709,3.58089,2680.2,2680.1,40.8]
[1727120260314,7.31209,2680.2,2680.1,40.8]
[1727120260915,8.2448,2680.2,2680.1,40.8]
[1727120261308,0.93281,2680.0,2679.3,3.23]
[1727120261510,3.58094,2679.8,2679.4,0.80088]
[1727120261808,0.37315,2679.7,2679.5,40.8]
[1727120262313,0.37315,2679.8,2679.5,40.8]
[1727120262515,3.58095,2679.8,2679.5,40.8]
[1727120262815,0.37315,2679.7,2679.5,40.8]
[1727120263018,0.81295,2679.7,2679.5,40.8]
[1727120263217,0.4398,2679.7,2679.5,40.8]
[1727120263518,0.37317,2679.6,2679.5,40.8]
[1727120264419,0.37317,2679.6,2679.2,0.80112]
[1727120264819,0.4398,2679.7,2679.2,0.80112]
[1727120265119,0.37321,2679.3,2679.2,0.4279]
[1727120265717,0.37321,2679.3,2679.2,41.2279]
[1727120266021,0.3732,2679.4,2679.2,41.2279]
[1727120266421,0.37317,2679.6,2679.2,41.2279]
[1727120266921,0.37317,2679.6,2679.2,41.60111]
[1727120268123,0.4398,2679.7,2679.2,41.60111]
[1727120268325,0.37317,2679.6,2679.2,41.60112]
[1727120268626,0.3732,2679.4,2679.2,41.2279]
[1727120268921,0.37321,2679.3,2679.2,40.8]
[1727120269119,0.37321,2679.3,2678.9,3.6538]
[1727120269120,0.933,2679.4,2679.0,0.4259]
[1727120269423,4.14091,2679.1,2678.5,3.79]
[1727120269726,0.37329,2678.8,2678.6,40.8]
[1727120269923,0.3988,2678.7,2678.6,40.8]
[1727120270425,0.77209,2678.7,2678.6,40.8]
[1727120271721,0.3988,2678.7,2678.6,40.8]
[1727120271923,0.37335,2678.3,2678.0,3.2078]
[1727120272126,0.3988,2678.2,2678.0,0.78959]
[1727120272427,0.3988,2678.2,2678.1,40.8]
[1727120273433,3.2078,2678.5,2678.1,41.17337]
[1727120273632,3.58112,2678.5,2678.1,41.55887]
[1727120274126,3.2078,2678.5,2678.1,41.1855]
[1727120274322,0.37328,2678.8,2678.1,41.1855]
[1727120274522,0.37329,2678.7,2678.3,0.37334]
[1727120274723,0.37329,2678.7,2678.3,3.60334]
[1727120277930,0.37329,2678.7,2678.4,40.8]
[1727120278430,0.4146,2678.8,2678.4,40.8]
[1727120278638,3.2078,2678.6,2678.4,40.8]
[1727120278837,3.58111,2678.6,2678.4,40.8]
[1727120279037,0.3733,2678.7,2678.4,40.8]
[1727120279237,0.3733,2678.7,2678.5,0.4005]
[1727120279537,0.4146,2678.8,2678.5,0.77381]
[1727120279738,0.4146,2678.8,2678.6,0.3733]
[1727120280235,0.4146,2678.8,2678.5,0.77382]
[1727120280436,0.78788,2678.8,2678.5,0.77382]
[1727120280734,0.78788,2678.8,2678.5,0.4005]
[1727120281236,0.78788,2678.8,2678.5,0.77382]
[1727120281835,0.3733,2678.7,2678.5,0.4005]
[1727120282034,0.37329,2678.7,2678.5,0.4005]
[1727120282225,0.37329,2678.7,2678.4,41.17333]
[1727120282434,0.37335,2678.3,2678.0,0.37338]
[1727120282733,0.37336,2678.2,2678.1,0.3929]
[1727120283036,0.78486,2678.2,2678.1,0.3929]
[1727120283435,1.34491,2678.2,2677.6,0.37344]
[1727120283638,0.37341,2677.9,2677.6,0.37344]
[1727120285534,0.93352,2677.9,2677.5,1.1798]
[1727120285739,0.37344,2677.7,2677.5,1.1798]
[1727120286438,0.37345,2677.6,2677.5,0.3929]
[1727120286643,3.23,2677.6,2676.4,3.2078]
[1727120286843,3.2078,2677.1,2676.4,1.55001]
[1727120287037,0.37355,2676.9,2676.4,1.1764]
[1727120287237,0.75197,2676.8,2676.4,1.1764]
[1727120287437,0.3784,2676.8,2676.4,0.771]
[1727120287743,0.3784,2676.8,2676.4,1.14461]
[1727120288242,3.2078,2677.1,2676.4,0.771]
[1727120288433,0.3931,2677.2,2676.6,3.23]
[1727120288834,0.76661,2677.2,2676.7,0.37356]
[1727120289239,0.3931,2677.2,2676.9,0.37354]
[1727120289545,0.3931,2677.2,2677.0,0.3795]
[1727120290238,0.76661,2677.2,2677.0,0.3795]
[1727120290947,0.3931,2677.2,2677.0,0.3795]
[1727120291141,0.3931,2677.2,2677.0,0.75303]
[1727120291341,0.3931,2677.2,2677.0,0.3795]
[1727120292038,0.3931,2677.2,2677.1,40.8]
[1727120292439,0.3931,2677.2,2677.1,41.17351]
[1727120292643,3.2078,2677.7,2677.1,40.8]
[1727120292843,0.78686,2677.6,2677.2,0.3735]
[1727120293043,0.37346,2677.5,2677.1,41.5624]
[1727120293747,0.4134,2677.6,2677.1,41.1889]
[1727120294140,0.37348,2677.4,2677.1,41.1889]
[1727120294445,0.37347,2677.4,2677.1,41.1889]
[1727120294850,0.37347,2677.4,2677.1,41.56241]
[1727120295045,0.37347,2677.5,2677.1,41.56241]
[1727120295346,0.37347,2677.4,2677.1,41.56241]
[1727120295547,0.37347,2677.5,2677.1,41.56241]
[1727120296247,0.37347,2677.4,2677.1,41.56241]
[1727120296750,0.37347,2677.5,2677.1,41.56241]
[1727120297548,0.37347,2677.5,2677.1,41.17351]
[1727120297743,0.7622,2677.4,2676.9,0.78074]
[1727120297945,0.3735,2677.3,2676.9,0.78074]
[1727120298252,0.3735,2677.3,2677.0,40.8]
[1727120298550,0.37349,2677.3,2677.0,41.17352]
[1727120301754,1.13568,2677.4,2677.1,0.37351]
[1727120301951,3.58127,2677.5,2677.1,0.37351]
[1727120302155,3.58127,2677.5,2677.2,0.3735]
[1727120302554,3.2078,2677.5,2677.3,2.62]
[1727120302851,0.78685,2677.6,2677.4,0.3867]
[1727120303051,0.4134,2677.6,2677.4,0.3867]
[1727120303250,0.4134,2677.6,2677.4,0.76017]
[1727120305754,0.4134,2677.6,2677.5,0.37346]
[1727120306154,0.4134,2677.6,2677.4,0.76016]
[1727120306355,0.4134,2677.6,2677.5,0.37346]
[1727120306559,0.4134,2677.6,2677.4,0.76017]
[1727120309257,0.78685,2677.6,2677.4,0.3867]
[1727120309658,0.78685,2677.6,2677.4,0.76017]
[1727120309860,0.78685,2677.6,2677.4,0.3867]
[1727120310060,0.37346,2677.5,2677.2,0.37349]
[1727120310556,0.78685,2677.6,2677.3,0.37348]
[1727120310959,0.4134,2677.6,2677.1,0.3836]
[1727120311259,4.90676,2677.5,2677.1,0.3836]
[1727120311651,0.37349,2677.3,2677.1,0.3836]
[1727120312855,3.9731,2677.5,2677.1,0.3836]
[1727120313159,3.96317,2677.5,2677.2,0.37349]
[1727120313460,0.37348,2677.4,2677.2,0.3735]
[1727120313763,0.37348,2677.4,2677.1,0.7571]
[1727120316563,3.58126,2677.5,2677.2,0.37349]
[1727120316757,0.37346,2677.5,2677.2,0.37349]
[1727120316959,0.37347,2677.4,2677.2,0.37349]
[1727120318460,0.4134,2677.6,2677.3,0.37348]
[1727120318663,0.4134,2677.6,2677.2,0.37349]
[1727120318664,0.37347,2677.4,2677.2,0.37349]
[1727120318859,3.58127,2677.5,2677.2,0.37349]
[1727120319163,0.37348,2677.4,2677.2,0.37349]
[1727120320065,3.58127,2677.5,2677.2,0.37349]